bitfinex-derivatives/quotes_SOLF0:USTF0_20250301
["timestamp","ask_amount","ask_price","bid_price","bid_amount"]
[1740791649524,12.4293645,146.91,146.89,4.584e-05]
[1740791650223,0.0493645,146.91,146.89,4.584e-05]
[1740791651226,5.4479,146.9,146.89,4.584e-05]
[1740791663041,17.8279,146.9,146.89,4.584e-05]
[1740791667350,5.4969645,146.91,146.89,4.584e-05]
[1740791667952,5.4473,146.92,146.89,4.584e-05]
[1740791668142,73.90362531,146.98,146.87,14.97994646]
[1740791668337,12.38,146.97,146.89,5.448]
[1740791668542,5.4467,146.94,146.9,14.0593684]
[1740791668742,12.38,146.97,146.91,14.0593684]
[1740791669051,5.4468,146.93,146.92,15.8056684]
[1740791669546,5.4468,146.93,146.92,1.7463]
[1740791669748,5.4468,146.93,146.92,15.79527564]
[1740791672556,5.4468,146.93,146.92,17.54357564]
[1740791672756,5.4468,146.93,146.92,3.4946]
[1740791675257,5.4465,146.94,146.92,3.4946]
[1740791675452,12.36,146.98,146.92,3.4946]
[1740791675654,12.36,146.98,146.92,3.5470432]
[1740791676455,5.4459,146.96,146.92,3.5470432]
[1740791677158,5.4456,146.97,146.93,14.02901848]
[1740791678463,5.4456,146.97,146.93,19.47571848]
[1740791678961,5.4456,146.97,146.93,14.02901848]
[1740791679561,5.4445,147.0,146.93,14.02901848]
[1740791679764,5.4445,147.0,146.94,14.02901848]
[1740791680066,5.4446,146.99,146.95,19.52219528]
[1740791680259,5.4446,146.99,146.95,5.4931768]
[1740791680763,219.6955,147.06,146.95,0.0473768]
[1740791680955,12.36,147.05,146.94,14.02901848]
[1740791681159,219.6955,147.06,146.99,0.04365561]
[1740791681351,5.444,147.01,146.99,0.04365561]
[1740791681664,12.36,147.04,146.99,0.04365561]
[1740791682053,5.4442,147.0,146.99,0.04365561]
[1740791687161,5.4442,147.0,146.99,5.561e-05]
[1740791688972,31.4701,147.0,146.99,5.561e-05]
[1740791690356,11.0301,147.0,146.99,5.561e-05]
[1740791692570,7.3185,147.0,146.99,5.561e-05]
[1740791697381,5.4442,147.0,146.99,5.561e-05]
[1740791707183,0.04498485,147.01,146.99,5.561e-05]
[1740791707384,5.4442,147.0,146.99,5.561e-05]
[1740791710390,5.48888485,147.01,146.99,5.561e-05]
[1740791710584,0.04498485,147.01,146.99,5.561e-05]
[1740791711987,5.4442,147.0,146.99,5.561e-05]
[1740791712495,0.04498485,147.01,146.99,5.561e-05]
[1740791713691,122.23472534,147.12,146.99,5.561e-05]
[1740791713891,17.9736,147.09,147.01,5.4437]
[1740791714890,5.6136,147.09,147.04,0.05014089]
[1740791715200,16.0741,147.09,147.04,0.05014089]
[1740791715399,12.36,147.09,147.04,5.49264089]
[1740791716196,5.4406,147.1,147.05,5.4422]
[1740791716388,5.4406,147.1,147.05,7.2125]
[1740791716596,187.06985367,147.13,147.05,1.7703]
[1740791716597,117.20127024,147.13,147.05,1.7703]
[1740791716799,5.4416,147.08,147.05,1.7703]
[1740791717305,115.39457024,147.13,147.05,7.26389348]
[1740791717689,115.39457024,147.13,147.05,1.82169348]
[1740791717895,5.4413,147.08,147.05,1.82169348]
[1740791719104,115.39457024,147.13,147.05,1.82169348]
[1740791719293,115.39457024,147.13,147.05,0.05139348]
[1740791720096,12.36,147.14,147.05,0.05139348]
[1740791720300,12.36,147.14,147.04,1.7645]
[1740791720501,12.36,147.14,147.08,0.04485241]
[1740791720702,5.4409,147.09,147.08,0.04485241]
[1740791722008,12.36,147.14,147.08,0.04485241]
[1740791723208,5.4405,147.11,147.08,0.04485241]
[1740791723609,12.36,147.14,147.08,0.04485241]
[1740791724505,5.4405,147.1,147.08,0.04485241]
[1740791724705,12.36,147.14,147.08,0.04485241]
[1740791725110,5.4406,147.1,147.08,0.04485241]
[1740791727216,12.34,147.15,147.08,0.04485241]
[1740791727406,5.4403,147.11,147.08,0.04485241]
[1740791728200,228.613,147.21,147.08,0.04485241]
[1740791728406,14.1915,147.2,147.07,1.7962]
[1740791728607,14.1915,147.2,147.13,0.04672567]
[1740791729813,5.439,147.14,147.13,0.04672567]
[1740791730317,14.1915,147.2,147.13,0.04672567]
[1740791730523,5.439,147.14,147.13,0.04672567]
[1740791731013,5.439,147.14,147.13,2.567e-05]
[1740791735820,17.8233731,147.15,147.13,2.567e-05]
[1740791736013,12.3846731,147.15,147.13,2.567e-05]
[1740791736613,5.439,147.14,147.13,2.567e-05]
[1740791740014,0.0446731,147.15,147.13,5.43932567]
[1740791741309,5.4833731,147.15,147.13,2.567e-05]
[1740791741814,0.0446731,147.15,147.13,2.567e-05]
[1740791743620,0.0446731,147.15,147.13,5.43932567]
[1740791744325,0.0446731,147.15,147.14,5.439]
[1740791749725,5.4373,147.19,147.17,5.4378]
[1740791749933,5.4368,147.21,147.17,5.4378]
[1740791750625,5.4368,147.21,147.18,5.4374]
[1740791750825,5.4368,147.21,147.18,5.48937438]
[1740791751421,5.4362,147.22,147.18,0.05197438]
[1740791751622,5.4362,147.22,147.19,5.4372]
[1740791752125,185.26315367,147.32,147.18,12.39197438]
[1740791752321,185.26315367,147.32,147.18,12.34]
[1740791752322,5.4345,147.27,147.18,12.34]
[1740791752521,5.4345,147.27,147.23,0.04744134]
[1740791752723,115.00592534,147.31,147.23,0.04744134]
[1740791752923,5.4349,147.26,147.23,0.04744134]
[1740791753141,3.6515,147.31,147.23,0.04744134]
[1740791753324,5.4348,147.26,147.23,0.04744134]
[1740791753833,12.34,147.29,147.23,0.04744134]
[1740791754924,5.4349,147.26,147.23,0.04744134]
[1740791755325,12.34,147.29,147.23,0.04744134]
[1740791755620,5.435,147.25,147.23,0.04744134]
[1740791756124,5.4353,147.24,147.23,0.04744134]
[1740791756324,12.34,147.29,147.23,0.04744134]
[1740791758534,5.4353,147.24,147.23,0.04744134]
[1740791758727,12.34,147.29,147.14,17.579]
[1740791758928,0.05054457,147.25,147.14,17.579]
[1740791759225,12.34,147.29,147.15,5.4385]
[1740791759426,12.32,147.28,147.15,5.4385]
[1740791759627,5.4367,147.21,147.14,17.579]
[1740791759828,5.4367,147.21,147.16,5.4383]
[1740791760024,0.0517074,147.19,147.16,0.05031369]
[1740791760229,5.4889074,147.19,147.16,0.05031369]
[1740791760429,0.0517074,147.19,147.16,0.05031369]
[1740791761234,5.4379,147.17,147.16,0.05031369]
[1740791770144,5.4376,147.18,147.16,0.05031369]
[1740791770337,0.0517074,147.19,147.16,0.05031369]
[1740791770734,5.4376,147.18,147.16,0.05031369]
[1740791770933,0.0517074,147.19,147.16,0.05031369]
[1740791771336,12.32,147.18,147.16,0.05031369]
[1740791771738,5.4379,147.17,147.16,0.05031369]
[1740791771944,12.32,147.18,147.1,22.94810964]
[1740791772240,12.32,147.18,147.1,1.7848]
[1740791772744,5.4393,147.14,147.1,1.7848]
[1740791772945,12.32,147.18,147.09,14.00250964]
[1740791773146,0.04366283,147.13,147.11,0.05110483]
[1740791773347,5.4398,147.12,147.11,0.05110483]
[1740791774748,5.48692481,147.13,147.11,0.05110483]
[1740791776743,0.04732481,147.13,147.11,0.05110483]
[1740791776949,5.4398,147.12,147.11,0.05110483]
[1740791779853,5.48682481,147.13,147.11,0.05110483]
[1740791780160,0.04732481,147.13,147.11,0.05110483]
[1740791781544,0.04732481,147.13,147.12,13.98973786]
[1740791782161,0.04732481,147.13,147.12,19.42953786]
[1740791782355,5.5147,147.21,147.12,13.98973786]
[1740791782547,1.8642,147.21,147.13,13.98973786]
[1740791782857,5.4369,147.2,147.16,5.4382]
[1740791783657,0.04723096,147.19,147.17,0.04895026]
[1740791784655,0.04723096,147.19,147.17,5.48685026]
[1740791787258,0.04723096,147.19,147.18,5.4375]
[1740791787460,0.04723096,147.19,147.17,0.04895026]
[1740791789357,0.04723096,147.19,147.13,28.96749403]
[1740791789558,12.32,147.18,147.1,28.96785346]
[1740791789754,12.32,147.18,147.11,13.99491626]
[1740791789952,12.32,147.18,147.11,13.99631669]
[1740791790159,12.32,147.18,147.1,13.99631669]
[1740791790361,12.32,147.18,147.09,1.8118]
[1740791790565,0.04464077,147.15,147.13,0.05088412]
[1740791791560,5.439,147.14,147.13,0.05088412]
[1740791791767,0.04464077,147.15,147.08,13.99613301]
[1740791791966,1.7994,147.17,147.09,13.99717994]
[1740791792160,1.7994,147.17,147.08,13.99717994]
[1740791792871,0.04418193,147.14,147.11,0.04596668]
[1740791793867,5.4409,147.09,147.07,13.99587393]
[1740791794067,5.4409,147.09,147.06,13.99587393]
[1740791794264,5.4409,147.09,147.07,13.99587393]
[1740791794467,5.4409,147.09,147.05,13.99587393]
[1740791794769,5.4409,147.09,147.06,13.99587393]
[1740791794969,5.4409,147.09,147.07,13.99587393]
[1740791795161,5.48819325,147.09,147.07,13.99587393]
[1740791795662,5.48819325,147.09,147.06,0.04372748]
[1740791795866,5.48819325,147.09,147.07,13.99587393]
[1740791796166,5.48819325,147.09,147.06,0.04372748]
[1740791796369,5.48819325,147.09,147.06,14.03960141]
[1740791796666,5.48819325,147.09,147.06,0.04372748]
[1740791796864,5.48819325,147.09,147.06,14.03960141]
[1740791797067,5.4413,147.08,147.06,0.04372748]
[1740791797267,5.4413,147.08,147.06,14.03960141]
[1740791797468,5.4413,147.08,147.06,0.04372748]
[1740791797663,5.4413,147.08,147.06,14.03960141]
[1740791797870,5.4413,147.08,147.06,0.04372748]
[1740791798173,5.4413,147.08,147.06,14.03960141]
[1740791798372,5.4413,147.08,147.06,0.04372748]
[1740791798669,5.4413,147.08,147.06,14.03960141]
[1740791798867,5.4413,147.08,147.06,0.04372748]
[1740791799070,5.4413,147.08,147.07,13.99587393]
[1740791800470,0.04729325,147.09,147.07,13.99587393]
[1740791800670,0.04729325,147.09,147.08,13.99587393]
[1740791800870,0.04729325,147.09,147.07,13.99587393]
[1740791801170,0.04729325,147.09,147.08,13.99587393]
[1740791801368,0.04729325,147.09,147.07,13.99587393]
[1740791801563,0.04729325,147.09,147.08,13.99587393]
[1740791801759,0.04729325,147.09,147.07,13.99587393]
[1740791801960,0.04729325,147.09,147.06,0.04372748]
[1740791802157,5.4412,147.08,147.07,13.99593379]
[1740791804077,0.04729325,147.09,147.07,13.99593379]
[1740791804271,0.04729325,147.09,147.08,13.99593379]
[1740791806062,0.04729325,147.09,147.06,15.01666468]
[1740791806257,0.04729325,147.09,147.06,0.04372748]
[1740791806458,5.4416,147.07,147.06,0.04372748]
[1740791806674,0.04729325,147.09,147.06,0.04372748]
[1740791806972,5.4416,147.07,147.06,0.04372748]
[1740791810071,0.04729325,147.09,147.06,0.04372748]
[1740791810468,0.04729325,147.09,147.07,5.4414]
[1740791810669,0.04729325,147.09,147.06,0.04372748]
[1740791810870,0.04729325,147.09,147.08,5.4412]
[1740791811370,0.04729325,147.09,147.07,5.4415]
[1740791811672,0.04729325,147.09,147.06,0.04372748]
[1740791812267,0.04729325,147.09,147.06,14.03945619]
[1740791812578,0.04729325,147.09,147.06,0.04372748]
[1740791812971,0.04729325,147.09,147.06,14.03945619]
[1740791813269,0.04729325,147.09,147.06,0.04372748]
[1740791814177,0.04729325,147.09,147.06,14.03846686]
[1740791814377,0.04729325,147.09,147.06,0.04372748]
[1740791814675,0.04729325,147.09,147.06,14.03846686]
[1740791814879,0.04729325,147.09,147.06,0.04372748]
[1740791815081,0.04729325,147.09,147.06,14.03846686]
[1740791815267,0.04729325,147.09,147.06,0.04372748]
[1740791815471,0.04729325,147.09,147.06,14.03846686]
[1740791815672,0.04729325,147.09,147.07,13.99473938]
[1740791815875,0.04729325,147.09,147.06,0.04372748]
[1740791816080,5.48819325,147.09,147.06,0.04372748]
[1740791816279,0.04729325,147.09,147.06,14.03936432]
[1740791816480,5.4416,147.07,147.06,0.04372748]
[1740791820375,12.36729325,147.09,147.02,13.99848943]
[1740791820692,12.32,147.09,147.01,13.99848943]
[1740791820883,12.32,147.09,147.0,13.99848943]
[1740791821070,5.4437,147.02,147.0,13.99848943]
[1740791821274,5.4437,147.02,146.99,192.89711252]
[1740791821571,5.48649988,147.02,146.99,192.94504788]
[1740791821982,5.48649988,147.02,146.99,178.94655845]
[1740791822675,0.04279988,147.02,146.99,0.04793536]
[1740791822882,5.4438,147.01,146.99,0.04793536]
[1740791823384,5.4442,147.0,146.99,0.04793536]
[1740791823578,0.04279988,147.02,146.99,0.04793536]
[1740791824185,5.444,147.01,146.99,0.04793536]
[1740791824784,5.48629988,147.02,146.99,0.04793536]
[1740791826485,0.04279988,147.02,146.99,0.04793536]
[1740791829583,12.32,147.09,146.99,0.04793536]
[1740791829783,5.4414,147.08,147.02,5.4435]
[1740791830589,5.4414,147.08,147.04,0.05215578]
[1740791830787,0.05108813,147.06,147.04,0.05215578]
[1740791831681,0.05108813,147.06,147.04,5.49475578]
[1740791832987,0.05108813,147.06,147.05,5.4423]
[1740791833184,0.05108813,147.06,147.05,19.44078943]
[1740791833791,14.2188,147.13,147.07,5.4413]
[1740791834688,5.4398,147.12,147.08,5.4412]
[1740791834896,0.04293707,147.11,147.09,0.0496821]
[1740791836682,5.4405,147.1,147.09,0.0496821]
[1740791836887,0.04293707,147.11,147.09,0.0496821]
[1740791840697,0.04293707,147.11,147.09,14.05398443]
[1740791840897,0.04293707,147.11,147.09,0.0496821]
[1740791841304,0.04293707,147.11,147.1,5.4405]
[1740791841593,5.4222,147.19,147.1,14.00244647]
[1740791841793,5.4222,147.19,147.14,5.439]
[1740791841794,5.4376,147.18,147.14,5.439]
[1740791842194,5.4376,147.18,147.1,1.8357]
[1740791842195,5.4376,147.18,147.1,16.8086372]
[1740791842500,5.4376,147.18,147.13,5.439]
[1740791842798,0.05197905,147.15,147.14,13.9941606]
[1740791842998,12.32,147.22,147.14,13.9941606]
[1740791843205,12.32,147.22,147.14,13.97928307]
[1740791843392,12.32,147.22,147.12,13.97928307]
[1740791843599,0.04327764,147.19,147.17,0.04755803]
[1740791843800,5.4375,147.18,147.17,0.04755803]
[1740791850402,1.7174,147.18,147.08,13.97928307]
[1740791850596,14.1354,147.17,147.07,203.34028491]
[1740791851105,5.4404,147.11,147.07,177.04100184]
[1740791851604,5.48552256,147.1,147.08,0.0457663]
[1740791851804,5.4405,147.1,147.07,177.04100184]
[1740791852001,5.49014442,147.1,147.08,0.04296125]
[1740791852504,0.04964442,147.1,147.08,0.04296125]
[1740791854593,0.04964442,147.1,147.09,5.4409]
[1740791856009,5.4386,147.16,147.12,5.4395]
[1740791856501,5.4381,147.17,147.13,5.4394]
[1740791857205,0.05219462,147.16,147.14,0.04607856]
[1740791859106,0.05219462,147.16,147.14,5.48487856]
[1740791859409,0.05219462,147.16,147.14,0.04607856]
[1740791859708,0.05219462,147.16,147.15,5.4386]
[1740791860799,307.76262531,147.31,147.14,0.04607856]
[1740791860999,307.76262531,147.31,147.12,12.3]
[1740791861000,5.4368,147.2,147.12,12.3]
[1740791861201,5.4368,147.2,147.12,14.077]
[1740791861400,5.4368,147.2,147.16,5.438]
[1740791862014,0.04846552,147.19,147.17,0.05079837]
[1740791862508,0.04846552,147.19,147.17,5.48869837]
[1740791864108,0.04846552,147.19,147.18,5.4375]
[1740791864710,5.4677,147.27,147.19,5.437]
[1740791865314,5.4359,147.23,147.2,5.4367]
[1740791865814,5.4352,147.25,147.21,5.4363]
[1740791866206,5.4352,147.25,147.22,0.04337525]
[1740791866916,5.4354,147.24,147.22,0.04337525]
[1740791870708,12.3,147.3,147.22,0.04337525]
[1740791870908,0.88685394,147.31,147.22,12.34337525]
[1740791871115,0.88685394,147.31,147.22,12.3]
[1740791871309,5.434,147.28,147.25,0.04843059]
[1740791871809,5.3684,147.34,147.25,0.04843059]
[1740791872007,5.3684,147.34,147.22,12.3]
[1740791872210,5.3684,147.34,147.28,0.04831818]
[1740791872610,5.4333,147.3,147.28,0.04831818]
[1740791872805,1.7837,147.34,147.28,0.04831818]
[1740791873205,5.4331,147.31,147.28,0.04831818]
[1740791873913,221.0153,147.38,147.28,0.04831818]
[1740791874110,221.0153,147.38,147.27,12.3]
[1740791874319,221.0153,147.38,147.32,0.04903655]
[1740791874618,5.432,147.33,147.32,0.04903655]
[1740791875115,1.8077,147.38,147.32,0.04903655]
[1740791875309,1.7259,147.4,147.32,0.04903655]
[1740791875702,5.4308,147.37,147.32,0.04903655]
[1740791876316,5.4305,147.37,147.33,5.4317]
[1740791876618,5.4305,147.37,147.32,12.34903655]
[1740791876814,5.432,147.33,147.32,12.34903655]
[1740791878617,5.432,147.33,147.32,0.04903655]
[1740791879011,5.4339,147.28,147.25,12.3]
[1740791879214,12.3,147.36,147.25,12.3]
[1740791879414,3.6171,147.35,147.25,12.3]
[1740791879721,5.4337,147.29,147.25,12.3]
[1740791880106,0.05079434,147.28,147.26,0.04440578]
[1740791880414,0.05079434,147.28,147.25,12.3]
[1740791880415,3.6171,147.35,147.25,12.3]
[1740791880726,3.6171,147.35,147.26,0.04556505]
[1740791880918,0.0467342,147.31,147.25,12.3]
[1740791881119,5.4331,147.3,147.29,0.04716257]
[1740791884114,5.4331,147.3,147.22,3.5272]
[1740791884115,12.3467342,147.31,147.22,3.5272]
[1740791884419,12.3,147.31,147.22,3.5272]
[1740791884821,5.4353,147.25,147.22,3.5272]
[1740791885222,5.48335919,147.25,147.22,3.57414277]
[1740791885925,0.04805919,147.25,147.22,3.57414277]
[1740791886523,0.04805919,147.25,147.22,9.01004277]
[1740791886914,0.04805919,147.25,147.22,0.04694277]
[1740791887120,5.4357,147.23,147.22,0.04694277]
[1740791887625,0.04805919,147.25,147.17,1.46893398]
[1740791887822,5.4374,147.19,147.17,1.46893398]
[1740791888022,1.8744,147.24,147.17,1.46893398]
[1740791888424,5.4368,147.21,147.17,1.46893398]
[1740791888925,0.04692739,147.2,147.18,0.04502074]
[1740791889415,5.48402739,147.2,147.18,0.04502074]
[1740791889617,0.04692739,147.2,147.18,0.04502074]
[1740791890219,5.48402739,147.2,147.18,0.04502074]
[1740791890918,0.04692739,147.2,147.18,0.04502074]
[1740791891827,0.04692739,147.2,147.19,5.4372]
[1740791892420,0.04692739,147.2,147.18,5.48242074]
[1740791893528,0.04692739,147.2,147.19,5.4372]
[1740791901235,0.04692739,147.2,147.19,19.41648307]
[1740791905336,1.7618,147.27,147.24,5.4353]
[1740791906438,1.81170183,147.27,147.24,19.46662295]
[1740791906639,1.81170183,147.27,147.24,5.48733988]
[1740791906839,7.24600183,147.27,147.24,5.48733988]
[1740791907039,7.24600183,147.27,147.24,19.46662295]
[1740791907240,7.24600183,147.27,147.24,5.48733988]
[1740791907748,7.24600183,147.27,147.24,19.4643438]
[1740791907948,7.24600183,147.27,147.24,5.48733988]
[1740791908443,7.24600183,147.27,147.24,19.4643438]
[1740791908745,7.24600183,147.27,147.24,5.48733988]
[1740791909348,7.24600183,147.27,147.24,19.4643438]
[1740791909647,1.81170183,147.27,147.24,5.48733988]
[1740791910149,1.81170183,147.27,147.24,19.4643438]
[1740791910350,1.81170183,147.27,147.25,5.4348]
[1740791913057,1.81170183,147.27,147.25,19.41730952]
[1740791913255,0.04990183,147.27,147.26,5.4346]
[1740791913456,3.6,147.34,147.26,13.98157358]
[1740791913659,3.6,147.34,147.27,13.98157358]
[1740791913957,3.6,147.34,147.25,14.9729372]
[1740791914145,5.4326,147.32,147.26,13.97963371]
[1740791914346,3.6,147.34,147.27,13.97963371]
[1740791914548,0.04569721,147.3,147.28,14.02425734]
[1740791914754,0.04569721,147.3,147.28,0.04462363]
[1740791914953,0.04569721,147.3,147.29,5.4335]
[1740791916256,0.04569721,147.3,147.29,19.40812233]
[1740791917449,0.04569721,147.3,147.29,31.68812233]
[1740791919859,5.47879721,147.3,147.29,13.97462233]
[1740791920049,0.04569721,147.3,147.28,0.04462363]
[1740791920558,5.4335,147.29,147.28,0.04462363]
[1740791920750,0.04569721,147.3,147.25,13.97462233]
[1740791920950,5.4341,147.28,147.25,13.97462233]
[1740791921257,0.04569721,147.3,147.25,13.97462233]
[1740791921557,0.04569721,147.3,147.23,12.28]
[1740791921558,5.4341,147.28,147.24,19.40972233]
[1740791921762,5.4341,147.28,147.25,13.97462233]
[1740791922061,5.4341,147.28,147.25,0.05154075]
[1740791922251,5.4341,147.28,147.25,14.02616308]
[1740791923266,5.4341,147.28,147.25,0.05154075]
[1740791923965,0.04569721,147.3,147.25,0.05154075]
[1740791925160,0.04569721,147.3,147.25,14.03785497]
[1740791925456,5.4346,147.26,147.25,0.05154075]
[1740791926069,5.47977389,147.27,147.25,0.05154075]
[1740791926557,5.47977389,147.27,147.25,14.03889039]
[1740791926759,0.04537389,147.27,147.25,0.05154075]
[1740791926957,5.4346,147.26,147.25,14.03889039]
[1740791927164,5.4346,147.26,147.25,0.05154075]
[1740791927361,5.4346,147.26,147.25,14.03889039]
[1740791927557,5.4346,147.26,147.25,0.05154075]
[1740791927962,5.47977389,147.27,147.25,0.05154075]
[1740791928163,0.04537389,147.27,147.25,0.05154075]
[1740791928661,5.4346,147.26,147.25,14.04090008]
[1740791928968,5.4346,147.26,147.25,0.05154075]
[1740791929167,5.4346,147.26,147.25,14.04090008]
[1740791929466,5.4346,147.26,147.25,0.05154075]
[1740791929659,5.4346,147.26,147.25,14.04090008]
[1740791929860,5.4346,147.26,147.25,0.05154075]
[1740791931471,5.4346,147.26,147.25,14.04114627]
[1740791931771,5.47967389,147.27,147.25,0.05154075]
[1740791931971,5.47967389,147.27,147.25,14.04089447]
[1740791932165,5.47967389,147.27,147.25,0.05154075]
[1740791933474,5.4346,147.26,147.25,0.05154075]
[1740791933664,5.4346,147.26,147.25,14.04434177]
[1740791936457,5.47977389,147.27,147.25,14.04434177]
[1740791936669,5.47977389,147.27,147.25,0.05154075]
[1740791936968,0.04537389,147.27,147.25,0.05154075]
[1740791937178,0.04537389,147.27,147.26,14.00234324]
[1740791937474,0.04537389,147.27,147.26,19.43694324]
[1740791937974,0.04537389,147.27,147.26,34.40988044]
[1740791939378,0.00356966,147.27,147.26,34.40988044]
[1740791941186,5.4325,147.32,147.28,5.4336]
[1740791941386,5.4325,147.32,147.29,14.00234324]
[1740791941593,5.4325,147.32,147.3,14.00234324]
[1740791941895,5.4325,147.32,147.29,14.9729372]
[1740791942092,5.4325,147.32,147.3,14.00008589]
[1740791942289,5.4325,147.32,147.3,0.04383865]
[1740791942486,5.47846643,147.32,147.3,0.04383865]
[1740791942991,5.47846643,147.32,147.31,14.00011159]
[1740791944883,5.4327,147.31,147.3,0.04383865]
[1740791949798,5.4327,147.31,147.3,14.05750173]
[1740791949995,5.4327,147.31,147.3,0.04383865]
[1740791955593,0.04596643,147.32,147.3,14.04242801]
[1740791955800,0.04596643,147.32,147.31,13.99858936]
[1740791955997,0.04596643,147.32,147.3,0.04383865]
[1740791956497,0.04596643,147.32,147.31,13.99484445]
[1740791957600,0.04596643,147.32,147.31,19.42754445]
[1740791957991,0.04596643,147.32,147.31,34.33085458]
[1740791959002,5.4309,147.36,147.31,34.33085458]
[1740791959298,5.4309,147.36,147.32,28.89815458]
[1740791959491,5.4309,147.36,147.33,13.99484445]
[1740791959696,5.4313,147.35,147.34,13.99484445]
[1740791960005,1.786,147.4,147.34,13.99484445]
[1740791960303,1.786,147.4,147.35,13.99484445]
[1740791960594,1.786,147.4,147.28,12.28]
[1740791960801,1.786,147.4,147.29,28.84086276]
[1740791961002,1.786,147.4,147.33,0.04974381]
[1740791961800,5.4316,147.34,147.33,0.04974381]
[1740791969509,5.4299,147.39,147.35,5.4311]
[1740791969696,5.4299,147.39,147.36,13.95977408]
[1740791969902,5.4299,147.39,147.36,0.04765699]
[1740791970712,5.4299,147.39,147.37,13.95162636]
[1740791970910,5.4299,147.39,147.38,13.95162636]
[1740791971311,73.90362531,147.44,147.36,5.47855699]
[1740791971610,5.4296,147.4,147.37,14.5415866]
[1740791971909,5.4298,147.39,147.35,5.4312]
[1740791972111,5.4298,147.39,147.37,0.04476047]
[1740791973698,5.4298,147.39,147.38,14.53858514]
[1740791974606,12.26,147.44,147.38,14.53858514]
[1740791974809,5.4296,147.4,147.37,0.04476047]
[1740791975012,3.5852,147.45,147.39,5.4297]
[1740791975212,5.4286,147.43,147.35,14.87783126]
[1740791975410,5.4286,147.43,147.41,0.04609051]
[1740791975613,5.4286,147.43,147.36,14.87783126]
[1740791975816,5.4286,147.43,147.37,14.50701348]
[1740791976009,5.4286,147.43,147.4,5.4292]
[1740791976405,12.26,147.47,147.39,0.04352094]
[1740791976606,12.26,147.47,147.4,14.49849468]
[1740791976808,5.4277,147.45,147.41,14.49849468]
[1740791977003,5.4277,147.45,147.42,0.04581195]
[1740791977208,20.20476888,147.49,147.42,0.04581195]
[1740791977410,5.4271,147.47,147.42,5.47431195]
[1740791978208,5.4271,147.47,147.43,19.90274668]
[1740791978415,5.4266,147.48,147.43,5.4283]
[1740791979114,5.4266,147.48,147.44,14.46036977]
[1740791979318,5.4266,147.48,147.44,5.4279]
[1740791979816,5.4266,147.48,147.44,19.88826977]
[1740791980019,5.4266,147.48,147.44,5.4279]
[1740791980316,5.4266,147.48,147.44,19.88826977]
[1740791980512,5.4266,147.48,147.44,5.4279]
[1740791980708,5.4266,147.48,147.44,19.88826977]
[1740791980908,5.4266,147.48,147.44,5.4279]
[1740791981109,6.548e-05,147.55,147.45,14.46036977]
[1740791981304,6.548e-05,147.55,147.46,18.16096977]
[1740791981509,6.548e-05,147.55,147.49,0.04395924]
[1740791982811,6.548e-05,147.55,147.5,5.4256]
[1740791983211,6.548e-05,147.55,147.49,0.04395924]
[1740791983417,6.548e-05,147.55,147.53,5.4245]
[1740791983811,6.548e-05,147.55,147.53,5.47013881]
[1740791984419,6.548e-05,147.55,147.53,0.04563881]
[1740791985021,6.548e-05,147.55,147.53,5.47023881]
[1740791986217,6.548e-05,147.55,147.53,0.04563881]
[1740791987920,6.548e-05,147.55,147.54,5.4243]
[1740791990328,4.2979241,147.57,147.53,1.87433881]
[1740791990525,4.2979241,147.57,147.54,1.7482]
[1740791992424,4.2979241,147.57,147.56,5.4235]
[1740791995728,4.2979241,147.57,147.54,1.7482]
[1740791996029,1.7348241,147.57,147.56,5.4235]
[1740792002026,1.7348241,147.57,147.54,1.7482]
[1740792002226,1.7348241,147.57,147.55,5.4236]
[1740792002637,1.7348241,147.57,147.55,17.6636]
[1740792003233,1.7348241,147.57,147.53,0.04563881]
[1740792003428,5.4243,147.54,147.53,0.04563881]
[1740792004136,7.1581241,147.57,147.53,0.04563881]
[1740792004341,1.7348241,147.57,147.54,5.424]
[1740792004550,1.7348241,147.57,147.53,0.04563881]
[1740792006038,5.4236,147.56,147.53,0.04563881]
[1740792006433,1.7348241,147.57,147.53,0.04563881]
[1740792006632,1.7348241,147.57,147.54,5.4242]
[1740792007242,1.7348241,147.57,147.53,0.04563881]
[1740792007941,5.4238,147.56,147.53,0.04563881]
[1740792008140,1.7348241,147.57,147.53,0.04563881]
[1740792008341,5.4238,147.56,147.53,0.04563881]
[1740792008537,1.7348241,147.57,147.53,0.04563881]
[1740792008936,5.4238,147.56,147.53,5.47013881]
[1740792009139,1.7348241,147.57,147.53,0.04563881]